bitfinex/quotes_BTCUSD_20250829
["timestamp","ask_amount","ask_price","bid_price","bid_amount"]
[1756484168128,0.03546185,108820.0,108810.0,0.63265007]
[1756484168495,0.03546185,108820.0,108810.0,1.69935216]
[1756484169316,0.03546185,108820.0,108810.0,1.73643114]
[1756484169898,0.03546185,108820.0,108810.0,1.69935216]
[1756484170111,0.03546185,108820.0,108810.0,0.59054406]
[1756484170352,0.03744185,108820.0,108810.0,0.58529406]
[1756484170766,0.03744185,108820.0,108810.0,1.13969811]
[1756484170972,0.03744185,108820.0,108810.0,1.14494811]
[1756484171496,0.03743878,108820.0,108810.0,0.74494811]
[1756484172087,0.03545878,108820.0,108810.0,0.74494811]
[1756484172285,0.03743878,108820.0,108810.0,0.73969811]
[1756484172691,0.03743878,108820.0,108810.0,1.14494811]
[1756484173031,0.03545878,108820.0,108810.0,1.14494811]
[1756484173612,0.03545878,108820.0,108810.0,1.69935216]
[1756484174882,0.03546042,108820.0,108810.0,1.69935216]
[1756484175905,0.01823126,108820.0,108810.0,1.8085873]
[1756484176131,0.01823126,108820.0,108810.0,2.1485873]
[1756484177912,0.01723126,108820.0,108810.0,2.1475873]
[1756484178076,0.26757208,108870.0,108860.0,0.18372221]
[1756484178077,0.42386639,108870.0,108860.0,0.18372221]
[1756484178287,0.62479623,108870.0,108860.0,0.16876284]
[1756484178496,0.62677623,108870.0,108860.0,0.16876284]
[1756484180039,0.6411559,108870.0,108860.0,0.16876284]
[1756484181110,0.6451559,108870.0,108850.0,0.18372394]
[1756484181239,0.6433459,108870.0,108850.0,0.18381137]
[1756484181427,0.00181,108860.0,108850.0,0.18381137]
[1756484181636,0.02101451,108860.0,108850.0,0.18381137]
[1756484182052,0.01920451,108860.0,108850.0,0.18381137]
[1756484182723,0.02020451,108860.0,108850.0,0.18381137]
[1756484182926,0.01822451,108860.0,108850.0,0.74344542]
[1756484183097,0.02020451,108860.0,108850.0,0.74344542]
[1756484183505,0.02020451,108860.0,108850.0,0.18381137]
[1756484183719,0.02020451,108860.0,108850.0,0.18904137]
[1756484183853,0.02020451,108860.0,108850.0,0.18381137]
[1756484184041,0.02220451,108860.0,108850.0,0.18381137]
[1756484185403,0.0221974,108860.0,108850.0,0.18381137]
[1756484187162,0.0202174,108860.0,108850.0,0.18904137]
[1756484187342,0.0202174,108860.0,108850.0,0.74344542]
[1756484188112,0.0182174,108860.0,108850.0,0.74344542]
[1756484188323,0.0182174,108860.0,108850.0,1.14344542]
[1756484188532,0.13322449,108870.0,108860.0,0.18272221]
[1756484188774,0.15241089,108870.0,108860.0,0.18695221]
[1756484189144,0.15241089,108870.0,108860.0,0.18172221]
[1756484189378,0.0703545,108870.0,108860.0,0.18172221]
[1756484189605,0.05597483,108870.0,108860.0,0.18172221]
[1756484190035,0.06557668,108870.0,108860.0,0.18172221]
[1756484190235,0.06757668,108870.0,108860.0,0.18172221]
[1756484190501,0.06757668,108870.0,108860.0,0.73612626]
[1756484190712,0.06559668,108870.0,108860.0,0.18695221]
[1756484191084,0.06559668,108870.0,108860.0,0.74135626]
[1756484191795,0.02880825,108870.0,108860.0,0.74135626]
[1756484192976,0.02880825,108870.0,108860.0,0.18695221]
[1756484193193,0.02880825,108870.0,108860.0,0.74135626]
[1756484193194,0.02780825,108870.0,108860.0,0.74135626]
[1756484193596,0.02580825,108870.0,108860.0,0.74135626]
[1756484193806,0.02580825,108870.0,108860.0,0.18695221]
[1756484194014,0.02680825,108870.0,108860.0,0.74135626]
[1756484195743,0.02680825,108870.0,108860.0,1.14135626]
[1756484195991,0.02680825,108870.0,108860.0,0.58695221]
[1756484196181,0.02677576,108870.0,108860.0,1.14135626]
[1756484196604,0.02677576,108870.0,108860.0,0.58695221]
[1756484196826,0.02677576,108870.0,108860.0,1.14135626]
[1756484197823,0.00959192,108870.0,108860.0,1.14135626]
[1756484198297,0.00959192,108870.0,108860.0,1.69576031]
[1756484199001,0.00959192,108870.0,108860.0,1.14135626]
[1756484199625,0.00959192,108870.0,108860.0,0.58695221]
[1756484199822,0.00959192,108870.0,108860.0,1.14235626]
[1756484200642,0.00859192,108870.0,108860.0,1.14235626]
[1756484200996,0.00859192,108870.0,108860.0,1.14135626]
[1756484201430,0.00859192,108870.0,108860.0,1.14235626]
[1756484201975,0.00859192,108870.0,108860.0,1.14535626]
[1756484204117,0.00859192,108870.0,108860.0,0.59095221]
[1756484204331,0.00859192,108870.0,108860.0,1.14535626]
[1756484205832,0.01057192,108870.0,108860.0,1.14535626]
[1756484206178,0.00859192,108870.0,108860.0,1.14535626]
[1756484206898,0.03716301,108890.0,108880.0,0.18368846]
[1756484207101,0.06473834,108890.0,108880.0,0.18368846]
[1756484207322,0.02955533,108890.0,108880.0,0.18368846]
[1756484207521,0.00198,108890.0,108880.0,0.18368846]
[1756484207886,0.03924973,108890.0,108880.0,0.18368846]
[1756484208090,0.02874847,108890.0,108880.0,0.18368846]
[1756484208313,0.02015898,108890.0,108880.0,0.18368846]
[1756484208733,0.00298,108890.0,108880.0,0.18368846]
[1756484209090,0.00298,108890.0,108880.0,0.73809251]
[1756484209544,0.03952085,108890.0,108880.0,0.73809251]
[1756484209892,0.03952085,108890.0,108880.0,0.18368846]
[1756484210100,0.001,108890.0,108880.0,0.74310251]
[1756484210456,0.001,108890.0,108880.0,0.18869846]
[1756484210630,0.001,108890.0,108880.0,0.74310251]
[1756484210826,0.02677891,108890.0,108880.0,0.74310251]
[1756484211180,0.001,108890.0,108880.0,0.74310251]
[1756484211352,0.00298,108890.0,108880.0,0.74310251]
[1756484211854,0.03943508,108890.0,108880.0,0.74017251]
[1756484212058,0.03943508,108890.0,108880.0,0.74310251]
[1756484212406,0.01157498,108890.0,108880.0,0.74310251]
[1756484212607,0.00959498,108890.0,108880.0,0.74310251]
[1756484213420,0.00298,108890.0,108880.0,0.18869846]
[1756484213665,0.00298,108890.0,108880.0,0.18368846]
[1756484213862,0.00198,108890.0,108880.0,0.18368846]
[1756484214021,0.00198,108890.0,108880.0,0.58368846]
[1756484214221,0.01057612,108890.0,108880.0,0.58576846]
[1756484214425,0.01057612,108890.0,108880.0,0.18969846]
[1756484214734,0.027767,108890.0,108880.0,0.18969846]
[1756484214975,0.06452108,108890.0,108880.0,0.18969846]
[1756484215558,0.06452108,108890.0,108880.0,0.74410251]
[1756484215757,0.06452108,108890.0,108880.0,0.18468846]
[1756484218572,0.80259672,108890.0,108880.0,0.001]
[1756484218782,0.80259672,108890.0,108880.0,0.18468846]
[1756484219000,0.24819267,108890.0,108880.0,0.18468846]
[1756484219721,0.25000267,108890.0,108870.0,0.65433004]
[1756484220121,0.25000267,108890.0,108870.0,0.65726004]
[1756484220328,0.73807564,108890.0,108880.0,0.18368846]
[1756484220775,0.18368846,108880.0,108870.0,0.07064]
[1756484220984,0.73809251,108880.0,108870.0,0.07064]
[1756484221193,0.18370533,108870.0,108850.0,0.26656832]
[1756484221383,0.73810938,108870.0,108850.0,0.25445137]
[1756484221593,0.18372221,108860.0,108850.0,0.25445137]
[1756484222032,0.18370533,108870.0,108860.0,0.18372221]
[1756484223063,0.18368846,108880.0,108860.0,0.18873221]
[1756484223304,0.34,108880.0,108870.0,0.18663533]
[1756484223507,0.34,108880.0,108870.0,0.18871533]
[1756484224527,0.52368846,108880.0,108860.0,0.18372221]
[1756484224698,0.52368846,108880.0,108870.0,0.18370533]
[1756484224902,0.52368846,108880.0,108870.0,0.18871533]
[1756484225505,0.52468846,108880.0,108870.0,0.18871533]
[1756484225711,0.52568846,108880.0,108870.0,0.18871533]
[1756484225893,0.52568846,108880.0,108860.0,0.73812626]
[1756484226097,0.342,108880.0,108870.0,0.18871533]
[1756484226307,0.52568846,108880.0,108870.0,0.18871533]
[1756484226505,0.52568846,108880.0,108860.0,0.18372221]
[1756484226711,0.52568846,108880.0,108860.0,0.18665221]
[1756484227141,0.52568846,108880.0,108870.0,0.18663533]
[1756484227358,0.52568846,108880.0,108870.0,0.00293]
[1756484227767,0.52568846,108880.0,108860.0,0.18665221]
[1756484228231,0.341,108880.0,108870.0,0.18871533]
[1756484228395,0.34,108880.0,108870.0,0.18871533]
[1756484228594,0.342,108880.0,108870.0,0.18871533]
[1756484228799,0.003,108880.0,108870.0,0.74311938]
[1756484228994,0.001,108880.0,108870.0,0.74311938]
[1756484229316,0.003,108880.0,108870.0,0.74311938]
[1756484229516,0.002,108880.0,108870.0,0.74311938]
[1756484229916,0.003,108880.0,108870.0,0.74311938]
[1756484232059,0.003,108880.0,108870.0,1.29752343]
[1756484232259,0.02683825,108880.0,108870.0,1.29752343]
[1756484232409,0.02683825,108880.0,108870.0,0.18871533]
[1756484232614,0.02883825,108880.0,108870.0,1.29752343]
[1756484232820,0.02783825,108880.0,108870.0,1.29752343]
[1756484233269,0.01922298,108880.0,108870.0,1.29952343]
[1756484233428,0.0278341,108880.0,108870.0,1.29952343]
[1756484233635,0.0258341,108880.0,108870.0,1.29952343]
[1756484234728,0.0258341,108880.0,108870.0,1.69952343]
[1756484235011,0.0258341,108880.0,108870.0,1.70252343]
[1756484235184,0.0258341,108880.0,108870.0,0.59471533]
[1756484235344,0.0258341,108880.0,108870.0,1.14911938]
[1756484235782,0.0258341,108880.0,108870.0,0.59471533]
[1756484235984,0.0258341,108880.0,108870.0,1.14911938]
[1756484239127,0.0258341,108880.0,108870.0,0.59471533]
[1756484239336,0.0258341,108880.0,108870.0,1.14911938]
[1756484239856,0.0258341,108880.0,108870.0,1.70352343]
[1756484240858,0.0258341,108880.0,108870.0,1.14911938]
[1756484243401,0.0258341,108880.0,108870.0,0.59471533]
[1756484243801,0.76392661,108880.0,108870.0,0.18970533]
[1756484244006,0.20951813,108880.0,108870.0,0.18970533]
[1756484244412,0.02582967,108880.0,108870.0,0.18970533]
[1756484244645,0.02582967,108880.0,108870.0,0.18670533]
[1756484244845,0.02582967,108880.0,108870.0,0.18678533]
[1756484245039,0.02582967,108880.0,108870.0,0.19083533]
[1756484246127,0.76392218,108880.0,108870.0,0.002]
[1756484246536,1.1922185,108880.0,108870.0,0.002]
[1756484246737,0.36582967,108880.0,108870.0,0.18570533]
[1756484247083,0.54951813,108880.0,108870.0,0.00713]
[1756484247261,1.10392218,108880.0,108870.0,0.002]
[1756484247712,1.10492218,108880.0,108870.0,0.002]
[1756484247918,0.18370533,108870.0,108860.0,0.18372221]
[1756484248118,0.209535,108870.0,108860.0,0.18372221]
[1756484248253,0.02582967,108870.0,108860.0,0.18885221]
[1756484248842,0.02582967,108870.0,108860.0,0.74325626]
[1756484249051,0.02582967,108870.0,108860.0,0.74525626]
[1756484249467,0.02582967,108870.0,108860.0,0.19085221]
[1756484249688,0.02582967,108870.0,108860.0,0.74525626]
[1756484250468,0.02582967,108870.0,108860.0,0.19085221]
[1756484250716,0.02582967,108870.0,108860.0,0.96153405]
[1756484252246,0.02582967,108870.0,108860.0,0.40713]
[1756484252392,0.02582967,108870.0,108860.0,0.00713]
[1756484252816,0.02582967,108870.0,108860.0,0.40713]
[1756484253013,0.02582967,108870.0,108860.0,0.96153405]
[1756484253249,0.02582967,108870.0,108860.0,0.40713]
[1756484253496,0.02582967,108870.0,108860.0,0.96153405]
[1756484254552,0.02583546,108870.0,108860.0,0.97072016]
[1756484255004,0.02583546,108870.0,108860.0,0.96153405]
[1756484255752,0.02583546,108870.0,108860.0,0.56153405]
[1756484256332,0.02583546,108870.0,108860.0,0.00713]
[1756484256559,0.02583546,108870.0,108860.0,0.002]
[1756484256758,0.58023951,108870.0,108860.0,0.002]
[1756484257971,0.58023951,108870.0,108850.0,0.07072743]
[1756484258226,0.58023951,108870.0,108850.0,8.743e-05]
[1756484258227,0.02583668,108870.0,108850.0,8.743e-05]
[1756484258415,0.6222519,108870.0,108850.0,8.743e-05]
[1756484258614,0.6232519,108870.0,108850.0,8.743e-05]
[1756484259499,0.6232519,108870.0,108850.0,0.00316743]
[1756484259721,0.6232519,108870.0,108850.0,8.743e-05]
[1756484259899,0.6222519,108870.0,108850.0,8.743e-05]
[1756484260117,0.6232519,108870.0,108850.0,8.743e-05]
[1756484260528,0.6232519,108870.0,108850.0,0.00521743]
[1756484260979,0.55440405,108860.0,108850.0,8.743e-05]
[1756484261189,0.92024073,108860.0,108850.0,8.743e-05]
[1756484262507,0.36583668,108860.0,108850.0,8.743e-05]
[1756484262727,0.92024073,108860.0,108850.0,0.00208743]
[1756484265210,0.90301587,108860.0,108850.0,0.00208743]
[1756484265433,0.96223712,108860.0,108850.0,0.00208743]
[1756484265795,0.96223424,108860.0,108850.0,0.00208743]
[1756484266773,1.040598,108860.0,108850.0,0.00208743]
[1756484267209,1.01356579,108860.0,108850.0,0.00208743]
[1756484267817,1.01556579,108860.0,108850.0,0.00208743]
[1756484268073,1.01556579,108860.0,108850.0,8.743e-05]
[1756484268260,1.05999604,108860.0,108850.0,8.743e-05]
[1756484269206,1.00666449,108860.0,108850.0,8.743e-05]
[1756484269743,1.00866449,108860.0,108850.0,8.743e-05]
[1756484270152,1.02960331,108860.0,108850.0,8.743e-05]
[1756484272374,1.02959926,108860.0,108850.0,8.743e-05]
[1756484273721,1.21332147,108860.0,108850.0,8.743e-05]
[1756484274080,1.28375447,108860.0,108850.0,8.743e-05]
[1756484274289,1.28375469,108860.0,108850.0,8.743e-05]
[1756484274493,1.21332169,108860.0,108850.0,8.743e-05]
[1756484274692,1.19238287,108860.0,108850.0,0.00519743]
[1756484275188,1.19238287,108860.0,108850.0,8.743e-05]
[1756484275384,1.17800174,108860.0,108850.0,8.743e-05]
[1756484275594,1.17800174,108860.0,108850.0,0.00319743]
[1756484275785,1.15879649,108860.0,108850.0,0.00519743]
[1756484275989,1.17599643,108860.0,108850.0,0.00519743]
[1756484276408,1.17599643,108860.0,108850.0,0.00319743]
[1756484276646,1.17399662,108860.0,108850.0,0.00319743]
[1756484276849,1.17599662,108860.0,108850.0,0.00519743]
[1756484276987,0.62159257,108860.0,108850.0,0.00519743]
[1756484277191,0.05544011,108860.0,108850.0,0.00519743]
[1756484277579,0.05544011,108860.0,108850.0,0.18893652]
[1756484277794,0.02780611,108860.0,108850.0,0.18893652]
[1756484277967,0.02880611,108860.0,108850.0,0.18893652]
[1756484278175,0.76693237,108860.0,108850.0,0.00519743]
[1756484278807,0.76393237,108860.0,108850.0,0.00519743]
[1756484278961,0.76593237,108860.0,108850.0,0.00519743]
[1756484279170,0.21152832,108860.0,108850.0,0.00519743]
[1756484279395,0.76393237,108860.0,108850.0,0.00519743]
[1756484279763,0.76493237,108860.0,108850.0,0.00519743]
[1756484280365,1.15532533,108860.0,108850.0,8.743e-05]
[1756484280724,1.15592912,108860.0,108850.0,8.743e-05]
[1756484281965,1.15593189,108860.0,108850.0,8.743e-05]
[1756484282968,1.1829641,108860.0,108850.0,8.743e-05]
[1756484283185,1.23125076,108860.0,108850.0,8.743e-05]
[1756484283783,0.18375597,108840.0,108830.0,0.00311]
[1756484283988,1.1039689,108840.0,108830.0,0.00311]
[1756484284211,1.1039689,108840.0,108830.0,0.00511]
[1756484284460,1.65837295,108840.0,108830.0,0.00311]
[1756484285169,0.52377285,108830.0,108820.0,0.00311]
[1756484285369,1.0781769,108830.0,108820.0,0.18378974]
[1756484285569,0.40391728,108830.0,108820.0,0.18889974]
[1756484285998,0.40391647,108830.0,108820.0,0.18889974]
[1756484287149,0.06391647,108830.0,108820.0,0.18889974]
[1756484287366,0.02580901,108830.0,108820.0,0.74330379]
[1756484288458,0.02580901,108830.0,108820.0,0.18889974]
[1756484288637,0.02580901,108830.0,108820.0,0.19089974]
[1756484290203,0.02580721,108830.0,108820.0,0.19089974]
[1756484290515,0.91094543,108850.0,108840.0,0.18375597]
[1756484290721,0.52374004,108850.0,108840.0,0.18886597]
[1756484290941,1.07814409,108850.0,108840.0,0.18886597]
[1756484291580,1.07814409,108850.0,108840.0,0.00511]
[1756484291783,1.07814409,108850.0,108810.0,0.4004]
[1756484291784,0.18377653,108830.0,108810.0,0.4004]
[1756484292098,0.73818058,108830.0,108820.0,0.002]
[1756484292257,0.18377653,108830.0,108820.0,0.002]
[1756484292445,0.73818058,108830.0,108820.0,0.00511]
[1756484292648,0.18378974,108820.0,108810.0,0.00351]
[1756484292850,1.07819379,108820.0,108810.0,0.0004]
[1756484293096,1.07819379,108820.0,108810.0,0.0014]
[1756484293297,1.07819379,108820.0,108810.0,0.0034]
[1756484293815,0.18384042,108790.0,108780.0,0.07419]
[1756484293967,0.18384042,108790.0,108780.0,0.07466656]
[1756484293968,0.73824447,108790.0,108780.0,0.07466656]
[1756484294175,0.73824447,108790.0,108780.0,0.00598656]
[1756484294983,1.07824447,108790.0,108780.0,0.00398656]
[1756484295186,1.07824447,108790.0,108780.0,0.00087656]
[1756484295370,1.101857,108790.0,108780.0,0.00087656]
[1756484295575,1.101857,108790.0,108780.0,0.00187656]
[1756484295795,1.19706129,108790.0,108780.0,0.00187656]
[1756484296056,1.101857,108790.0,108780.0,0.00187656]
[1756484296219,1.101857,108790.0,108780.0,0.00087656]
[1756484296420,1.15735071,108790.0,108780.0,0.00187656]
[1756484296841,1.14327992,108790.0,108780.0,0.00087656]
[1756484297403,1.14327992,108790.0,108780.0,0.00187656]
[1756484297607,1.11624771,108790.0,108780.0,0.00187656]
[1756484297810,1.20454403,108790.0,108780.0,0.00187656]
[1756484298660,1.20454403,108790.0,108780.0,0.00087656]
[1756484298864,1.20654403,108790.0,108780.0,0.00087656]
[1756484299075,1.20954403,108790.0,108780.0,0.00087656]
[1756484299848,6.28597656,108790.0,108780.0,0.00087656]
[1756484300339,0.52385732,108780.0,108770.0,0.0004]
[1756484300503,6.19962611,108780.0,108770.0,0.0004]
[1756484300715,5.62160953,108780.0,108770.0,0.0004]
[1756484300917,6.1725939,108780.0,108770.0,0.0004]
[1756484301120,6.1725939,108780.0,108770.0,0.00252]
[1756484301121,1.1018739,108780.0,108770.0,0.00252]
[1756484301357,0.52385732,108780.0,108770.0,0.00552]
[1756484301585,0.52854532,108780.0,108770.0,0.00552]
[1756484301948,0.18854532,108780.0,108770.0,0.00552]
[1756484302170,0.18585732,108780.0,108770.0,0.00552]
[1756484302368,0.24900141,108780.0,108770.0,0.00552]
[1756484302738,1.16601799,108780.0,108770.0,0.00552]
[1756484302940,1.16501799,108780.0,108770.0,0.00552]
[1756484303350,1.16601799,108780.0,108770.0,0.0004]
[1756484303660,1.25431431,108780.0,108770.0,0.00552]
[1756484303843,1.16601799,108780.0,108770.0,0.0004]
[1756484304047,0.18389113,108760.0,108750.0,0.18390804]
[1756484304185,0.19246268,108760.0,108750.0,0.18390804]
[1756484304385,0.19246268,108760.0,108750.0,0.18602804]
[1756484304796,0.19246268,108760.0,108750.0,0.00212]
[1756484305257,0.78762255,108760.0,108750.0,0.00212]
[1756484305485,1.12960255,108760.0,108750.0,0.004]
[1756484305662,1.12762255,108760.0,108750.0,0.00612]
[1756484306011,1.12762255,108760.0,108750.0,0.00812]
[1756484306205,1.12960255,108760.0,108750.0,0.00512]
[1756484306400,1.10388771,108760.0,108750.0,0.00512]
[1756484306608,1.13060813,108760.0,108750.0,0.00212]
[1756484306871,0.18390804,108750.0,108740.0,0.07328]
[1756484307073,0.77049809,108750.0,108740.0,0.00512]
[1756484307219,0.77247809,108750.0,108740.0,0.00212]
[1756484307412,0.77049809,108750.0,108740.0,0.00212]
[1756484307621,0.78764484,108750.0,108740.0,0.00512]
[1756484308218,1.12962484,108750.0,108740.0,0.00014308]
[1756484308352,1.12962484,108750.0,108740.0,0.00226308]
[1756484308547,1.13244484,108750.0,108740.0,0.00014308]
[1756484308750,1.12962484,108750.0,108740.0,0.00014308]
[1756484308975,1.16010684,108750.0,108740.0,0.00014308]
[1756484309357,1.24840316,108750.0,108740.0,0.00014308]
[1756484309792,1.32483569,108750.0,108740.0,0.00014308]
[1756484309962,1.27922744,108750.0,108740.0,0.00014308]
[1756484310187,1.29638723,108750.0,108740.0,0.00014308]
[1756484310355,1.20809091,108750.0,108740.0,0.00014308]
[1756484310557,1.1792387,108750.0,108740.0,0.00014308]
[1756484310759,0.76195845,108730.0,108710.0,0.18853279]
[1756484311008,0.36573326,108730.0,108720.0,0.18837827]
[1756484311270,0.02573326,108730.0,108720.0,0.18607879]
[1756484311613,0.02573326,108730.0,108720.0,0.76409537]
[1756484311819,0.02573326,108730.0,108720.0,0.92311169]
[1756484312099,0.02573326,108730.0,108720.0,0.34509511]
[1756484312274,0.02573326,108730.0,108720.0,0.92311169]
[1756484312651,0.02573326,108730.0,108720.0,0.92611169]
[1756484313191,0.02573326,108730.0,108720.0,0.92811169]
[1756484313748,0.02573326,108730.0,108720.0,1.32811169]
[1756484313980,0.02573326,108730.0,108720.0,1.32911169]
[1756484314837,0.02573326,108730.0,108720.0,1.69005051]
[1756484315049,0.02573326,108730.0,108720.0,2.26806709]
[1756484315262,0.02573326,108730.0,108720.0,1.69005051]
[1756484315666,0.02573326,108730.0,108720.0,1.68905051]
[1756484315868,0.02573326,108730.0,108720.0,2.26706709]
[1756484316071,0.02573326,108730.0,108720.0,2.26506709]
[1756484316473,0.02573326,108730.0,108720.0,2.26906709]
[1756484316675,0.02573326,108730.0,108720.0,1.69105051]
[1756484316885,0.26333576,108780.0,108770.0,0.18387423]
[1756484317116,0.58087176,108780.0,108760.0,0.16592379]
[1756484317291,0.18387423,108770.0,108760.0,0.16592379]
[1756484317503,0.58087176,108780.0,108760.0,0.16092379]
[1756484317661,0.58087176,108780.0,108770.0,0.18387423]
[1756484317852,1.15888834,108780.0,108770.0,0.18387423]
[1756484318060,1.16203107,108780.0,108760.0,0.16392379]
[1756484318266,0.18387423,108770.0,108760.0,0.16092379]
[1756484318466,0.76708081,108770.0,108750.0,0.2546249]
[1756484318679,0.18706113,108760.0,108750.0,0.2546249]
[1756484318878,0.23306349,108760.0,108750.0,0.2546249]
[1756484319104,0.26796752,108760.0,108750.0,0.2546249]
[1756484319302,0.26796752,108760.0,108750.0,0.2567449]
[1756484319515,0.8459841,108760.0,108750.0,0.25462804]
[1756484319685,0.8459841,108760.0,108750.0,0.25674804]
[1756484319884,0.26796752,108760.0,108750.0,0.25674804]
[1756484320128,0.26896752,108760.0,108750.0,0.25674804]
[1756484320498,0.08305639,108760.0,108750.0,0.25974804]
[1756484320691,0.08305639,108760.0,108750.0,0.25076406]
[1756484321164,0.08405639,108760.0,108750.0,0.25076406]
[1756484321510,0.8511541,108760.0,108730.0,0.75877701]
[1756484321706,0.27313752,108760.0,108740.0,0.18392473]
[1756484321914,0.8511541,108760.0,108740.0,0.18692473]
[1756484322112,0.8511541,108760.0,108740.0,0.18392473]
[1756484322310,0.18390804,108750.0,108740.0,0.18392473]
[1756484322536,0.18592804,108750.0,108740.0,0.18392473]
[1756484322745,0.18592804,108750.0,108730.0,0.35877701]
[1756484323051,0.18392495,108740.0,108730.0,0.35877701]
[1756484323244,0.00202,108740.0,108730.0,0.36089701]
[1756484323444,0.00202,108740.0,108730.0,0.35789701]
[1756484323683,0.85415865,108760.0,108740.0,0.18392495]
[1756484323859,0.42305639,108760.0,108750.0,0.19132689]
[1756484324075,0.42305639,108760.0,108750.0,0.17704865]
[1756484324279,0.42205639,108760.0,108750.0,0.1793475]
[1756484324851,0.08205639,108760.0,108750.0,0.1793475]
[1756484325409,0.08305639,108760.0,108750.0,0.1793475]
[1756484326470,0.08405639,108760.0,108750.0,0.1793475]
[1756484327185,0.08405639,108760.0,108750.0,0.75736408]
[1756484327393,0.08405639,108760.0,108750.0,0.17704865]
[1756484327595,0.07093928,108760.0,108750.0,0.8456604]
[1756484327817,0.07093928,108760.0,108750.0,0.84336155]
[1756484328248,0.07093928,108760.0,108750.0,0.17704865]
[1756484328423,0.06993928,108760.0,108750.0,0.17704865]
[1756484328823,0.06893928,108760.0,108750.0,0.17704865]
[1756484329008,0.09468397,108760.0,108750.0,0.17704865]
[1756484329212,0.09468397,108760.0,108750.0,0.17804865]
[1756484329587,0.09468397,108760.0,108750.0,1.2466604]
[1756484329701,0.09468397,108760.0,108750.0,1.24436155]
[1756484329904,0.09468397,108760.0,108750.0,1.23238381]
[1756484330516,0.09468397,108760.0,108750.0,0.65136723]
[1756484330769,0.09684397,108760.0,108750.0,0.55408762]
[1756484331129,0.09468397,108760.0,108750.0,0.55726762]
[1756484331533,0.09684397,108760.0,108750.0,0.55408762]
[1756484331733,0.2807351,108760.0,108750.0,0.15408762]
[1756484331939,0.2837751,108760.0,108750.0,0.15196762]
[1756484332143,0.09988397,108760.0,108750.0,0.14597831]
[1756484332773,0.09684397,108760.0,108750.0,0.14827716]
[1756484333231,0.09684397,108760.0,108750.0,0.15023716]
[1756484333938,0.09988397,108760.0,108750.0,0.14597831]
[1756484334152,0.86179168,108760.0,108750.0,0.001]
[1756484334360,0.86179168,108760.0,108750.0,0.18490804]
[1756484334730,0.09988397,108760.0,108750.0,0.18490804]
[1756484335047,0.67486055,108760.0,108750.0,0.18490804]
[1756484335689,0.67486055,108760.0,108750.0,0.001]
[1756484335690,0.86179168,108760.0,108750.0,0.001]
[1756484335907,0.2837751,108760.0,108750.0,0.001]
[1756484336124,0.86179168,108760.0,108750.0,0.18490804]
[1756484336556,0.09684397,108760.0,108750.0,0.18686804]
[1756484336785,0.2807351,108760.0,108750.0,0.18490804]
[1756484336958,0.86179168,108760.0,108750.0,0.18490804]
[1756484337170,0.69421544,108760.0,108750.0,0.18349324]
[1756484337335,0.69117544,108760.0,108750.0,0.17047937]
[1756484337537,0.11315886,108760.0,108750.0,0.17277822]
[1756484337750,0.11315886,108760.0,108750.0,0.17081822]
[1756484338167,0.69117544,108760.0,108750.0,0.17081822]
[1756484338345,0.67404705,108760.0,108750.0,0.17081822]
[1756484338568,0.69127964,108760.0,108750.0,0.17081822]
[1756484338770,0.69127964,108760.0,108750.0,0.16851937]
[1756484339299,0.87821077,108760.0,108750.0,0.16851937]
[1756484339469,0.87821077,108760.0,108740.0,0.18392495]
[1756484339658,0.76496462,108750.0,108740.0,0.18392495]
[1756484339860,0.79297351,108750.0,108730.0,0.25466057]
[1756484340063,0.58105658,108740.0,108730.0,0.25466057]
[1756484340386,0.02584889,108740.0,108730.0,0.25980057]
[1756484340939,0.02800889,108740.0,108730.0,0.25662057]
[1756484341237,0.02803756,108740.0,108730.0,0.25662057]
[1756484341663,0.21500251,108740.0,108730.0,0.25466057]
[1756484341870,0.03107756,108740.0,108730.0,0.25466057]
[1756484342066,0.02803756,108740.0,108730.0,0.25662057]
[1756484342578,0.02803756,108740.0,108730.0,0.25980057]
[1756484343007,0.02803756,108740.0,108730.0,0.25662057]
[1756484343402,0.02587756,108740.0,108730.0,0.25980057]
[1756484343717,0.02803756,108740.0,108730.0,0.25662057]
[1756484343917,0.02587756,108740.0,108730.0,0.25662057]
[1756484344120,0.02587756,108740.0,108730.0,0.25980057]
[1756484344291,0.0258784,108740.0,108730.0,0.25980057]
[1756484346107,0.0258784,108740.0,108730.0,0.92611347]
[1756484346912,0.0258784,108740.0,108730.0,0.34809689]
[1756484347228,0.0258784,108740.0,108730.0,0.92711347]
[1756484347860,0.00862584,108740.0,108730.0,0.92711347]
[1756484348065,0.08548417,108760.0,108750.0,0.18390804]
[1756484348315,0.1113599,108760.0,108750.0,0.16893502]
[1756484348485,0.1113599,108760.0,108750.0,0.17637387]
[1756484349347,0.1113599,108760.0,108750.0,0.75439045]
[1756484349548,0.1113599,108760.0,108750.0,0.7520916]
[1756484349753,0.1113599,108760.0,108750.0,0.84038792]
[1756484349754,0.1123599,108760.0,108750.0,0.84038792]
[1756484350188,0.1123599,108760.0,108750.0,0.26237134]
[1756484350189,0.09610941,108760.0,108750.0,0.26237134]
[1756484350393,0.09610941,108760.0,108750.0,0.84038792]
[1756484351631,0.09610941,108760.0,108750.0,0.26237134]
[1756484351830,0.09610941,108760.0,108750.0,0.17407502]
[1756484352029,0.09826941,108760.0,108750.0,0.17089502]
[1756484352234,0.09610941,108760.0,108750.0,0.17407502]
[1756484352544,0.09610941,108760.0,108750.0,0.57637387]
[1756484352689,0.09610941,108760.0,108750.0,0.57407502]
[1756484353825,0.09610941,108760.0,108750.0,1.24038792]
[1756484354031,0.09610941,108760.0,108750.0,1.58038792]
[1756484354233,0.09610941,108760.0,108750.0,1.00237134]
[1756484354441,0.03062216,108760.0,108750.0,1.58038792]
[1756484354813,0.02962216,108760.0,108750.0,1.58038792]
[1756484355178,0.02862216,108760.0,108750.0,1.58038792]
[1756484355523,0.02862216,108760.0,108750.0,1.61844123]
[1756484356263,0.02962216,108760.0,108750.0,1.61844123]
[1756484356725,0.02862216,108760.0,108750.0,1.61844123]
[1756484358747,0.02861311,108760.0,108750.0,1.61844123]
[1756484358902,0.02861311,108760.0,108750.0,1.63938005]
[1756484359931,0.02861311,108760.0,108750.0,1.90848005]
[1756484363007,0.02861311,108760.0,108750.0,1.33046347]
[1756484363170,0.02861311,108760.0,108750.0,1.90848005]
[1756484364251,0.02861311,108760.0,108750.0,1.63938005]
[1756484365378,0.02861311,108760.0,108750.0,1.64138005]
[1756484365984,0.02861311,108760.0,108750.0,1.64238005]
[1756484366199,0.00884619,108760.0,108750.0,1.64238005]
[1756484367272,0.00023,108760.0,108750.0,1.64238005]
[1756484368251,0.00023,108760.0,108750.0,1.91148005]
[1756484368648,1e-08,108760.0,108750.0,2.53949663]
[1756484369126,1e-08,108760.0,108750.0,2.58949663]
[1756484369755,0.34,108820.0,108810.0,0.18380663]
[1756484369954,0.35110373,108820.0,108810.0,0.18380663]
[1756484370355,0.01110373,108820.0,108810.0,0.18380663]
[1756484370762,0.04822715,108820.0,108810.0,0.18380663]
[1756484370960,0.19689347,108820.0,108800.0,0.19298607]